[Event "AI Cup Div-2 2023"]
[Site "Online"]
[Date "2023.09.26"]
[Round "51.2"]
[White "Safarli, Eltaj"]
[Black "Niemann, Hans Moke"]
[Result "1-0"]
[ECO "C50"]
[WhiteElo "2612"]
[BlackElo "2667"]
[Annotator "ChessBase"]
[PlyCount "89"]
[EventDate "2023.09.18"]
[EventType "k.o."]
[EventCountry "NET"]
[SourceTitle "playchess.com"]
[Source "ChessBase"]
[SourceQuality "1"]
[TimeControl "900+3"]

1. e4 {[%emt 0:00:03]} e5 {[%emt 0:00:05]} 2. Nf3 {[%emt 0:00:02]} Nc6 {[%emt 0:00:01]} 3. Bc4 {[%emt 0:00:00]} Nf6 {[%emt 0:00:02]} 4. d3 {[%emt 0:00:02]} Bc5 {[%emt 0:00:23]} 5. Nc3 {[%emt 0:00:01]} a6 {[%emt 0:00:06]} 6. Bg5 {[%emt 0:00:18]} h6 {[%emt 0:00:06]} 7. Bxf6 {[%emt 0:00:03]} Qxf6 {[%emt 0:00:00]} 8. Nd5 {[%emt 0:00:01]} Qd8 {[%emt 0:00:01]} 9. c3 {[%emt 0:00:00]} d6 {[%emt 0:00:04]} 10. d4 {[%emt 0:00:02]} exd4 {[%emt 0:00:55]} 11. cxd4 {[%emt 0:00:00]} Ba7 {[%emt 0:00:01]} 12. Rc1 {[%emt 0:00:07]} O-O {[%emt 0:01:05]} 13. h3 {[%emt 0:00:03]} Re8 {[%emt 0:00:18]} 14. O-O {[%emt 0:00:02]} Rxe4 {[%emt 0:00:19]} 15. Bd3 {[%emt 0:00:03]} Re8 {[%emt 0:00:16]} 16. Bb1 {[%emt 0:00:02]} g6 {[%emt 0:00:23]} 17. Qd2 {[%emt 0:00:19]} Kg7 {[%emt 0:00:04]} 18. Rfe1 {[%emt 0:01:00]} Rxe1+ {[%emt 0:00:53]} 19. Rxe1 {[%emt 0:00:00]} Bd7 {[%emt 0:00:04]} 20. Qf4 {[%emt 0:00:29]} Be6 {[%emt 0:01:14]} 21. Rxe6 {[%emt 0:01:46]} fxe6 {[%emt 0:00:02]} 22. Qg4 {[%emt 0:01:11]} Ne7 {[%emt 0:00:08]} 23. Qxe6 {[%emt 0:00:58]} Nxd5 {[%emt 0:00:17]} 24. Qxg6+ {[%emt 0:00:18]} Kf8 {[%emt 0:00:03]} 25. Qxh6+ {[%emt 0:00:04]} Ke8 {[%emt 0:00:05]} 26. Qh5+ {[%emt 0:03:14]} Kd7 {[%emt 0:00:45]} 27. Qxd5 {[%emt 0:00:04]} Kc8 {[%emt 0:00:03]} 28. Ne5 {[%emt 0:01:07]} Bb6 {[%emt 0:00:37]} 29. Be4 {[%emt 0:01:50]} Ra7 {[%emt 0:00:03]} 30. Bf5+ {[%emt 0:01:16]} Kb8 {[%emt 0:00:01]} 31. Nd7+ {[%emt 0:00:01]} Ka8 {[%emt 0:00:01]} 32. h4 {[%emt 0:00:07]} a5 {[%emt 0:00:01]} 33. h5 {[%emt 0:00:07]} a4 {[%emt 0:00:02]} 34. Nxb6+ {[%emt 0:00:11]} cxb6 {[%emt 0:00:02]} 35. Be4 {[%emt 0:00:15]} Qc8 {[%emt 0:00:01]} 36. Qxd6 {[%emt 0:00:58]} Ra5 {[%emt 0:00:11]} 37. Bf3 {[%emt 0:00:02]} Rf5 {[%emt 0:00:29]} 38. h6 {[%emt 0:00:15]} Ka7 {[%emt 0:00:16]} 39. h7 {[%emt 0:00:20]} Rf7 {[%emt 0:00:12]} 40. Qg6 {[%emt 0:00:07]} Qc1+ {[%emt 0:00:07]} 41. Kh2 {[%emt 0:00:01]} Qf4+ {[%emt 0:00:02]} 42. Kh3 {[%emt 0:00:07]} Rf6 {[%emt 0:00:02]} 43. Qh5 {[%emt 0:00:10]} a3 {[%emt 0:00:37]} 44. bxa3 {[%emt 0:00:02]} Rh6 {[%emt 0:00:06]} 45. h8=Q {[%emt 0:00:01]} 1-0

[Event "AI Cup Div-2 2023"]
[Site "Online"]
[Date "2023.09.26"]
[Round "51.3"]
[White "Eljanov, Pavel"]
[Black "Gledura, Benjamin"]
[Result "1-0"]
[ECO "B84"]
[WhiteElo "2695"]
[BlackElo "2633"]
[Annotator "ChessBase"]
[PlyCount "97"]
[EventDate "2023.09.18"]
[EventType "k.o."]
[EventCountry "NET"]
[SourceTitle "playchess.com"]
[Source "ChessBase"]
[SourceQuality "1"]
[TimeControl "900+3"]

1. e4 {[%emt 0:00:12]} c5 {[%emt 0:04:09]} 2. Nf3 {[%emt 0:00:07]} d6 {[%emt 0:00:05]} 3. d4 {[%emt 0:00:13]} cxd4 {[%emt 0:00:04]} 4. Nxd4 {[%emt 0:00:04]} Nf6 {[%emt 0:00:04]} 5. Nc3 {[%emt 0:00:04]} a6 {[%emt 0:00:04]} 6. Be2 {[%emt 0:00:13]} e6 {[%emt 0:00:05]} 7. Be3 {[%emt 0:00:33]} Qc7 {[%emt 0:00:05]} 8. Qd2 {[%emt 0:00:46]} b5 {[%emt 0:00:10]} 9. a3 {[%emt 0:00:12]} Nbd7 {[%emt 0:00:06]} 10. f3 {[%emt 0:01:04]} h5 {[%emt 0:00:08]} 11. O-O-O {[%emt 0:00:08]} Be7 {[%emt 0:00:20]} 12. h3 {[%emt 0:01:13]} h4 {[%emt 0:00:10]} 13. Ndxb5 {[%emt 0:00:18]} axb5 {[%emt 0:00:05]} 14. Nxb5 {[%emt 0:00:04]} Qc6 {[%emt 0:00:07]} 15. Nxd6+ {[%emt 0:00:08]} Kf8 {[%emt 0:00:10]} 16. Bb5 {[%emt 0:00:35]} Qc7 {[%emt 0:00:04]} 17. Bf4 {[%emt 0:02:30]} e5 {[%emt 0:01:00]} 18. Be3 {[%emt 0:00:17]} g6 {[%emt 0:00:51]} 19. Bc4 {[%emt 0:00:39]} Rh7 {[%emt 0:00:55]} 20. Bb3 {[%emt 0:00:22]} Ba6 {[%emt 0:00:10]} 21. Kb1 {[%emt 0:02:29]} Rd8 {[%emt 0:01:10]} 22. Bh6+ {[%emt 0:00:24]} Kg8 {[%emt 0:00:07]} 23. Nxf7 {[%emt 0:01:03]} Rxf7 {[%emt 0:00:21]} 24. Qg5 {[%emt 0:00:05]} Nf8 {[%emt 0:00:09]} 25. Bxf8 {[%emt 0:00:06]} Kxf8 {[%emt 0:00:08]} 26. Qxg6 {[%emt 0:01:03]} Rxd1+ {[%emt 0:00:14]} 27. Rxd1 {[%emt 0:00:05]} Bc4 {[%emt 0:00:20]} 28. Qh6+ {[%emt 0:00:04]} Rg7 {[%emt 0:00:12]} 29. Rd2 {[%emt 0:00:22]} Bxb3 {[%emt 0:00:13]} 30. cxb3 {[%emt 0:00:04]} Ng8 {[%emt 0:00:07]} 31. Qa6 {[%emt 0:00:06]} Rf7 {[%emt 0:00:33]} 32. Rc2 {[%emt 0:00:06]} Qd6 {[%emt 0:00:05]} 33. Rc6 {[%emt 0:00:07]} Qd1+ {[%emt 0:00:10]} 34. Ka2 {[%emt 0:00:04]} Nf6 {[%emt 0:00:13]} 35. Qc8+ {[%emt 0:00:09]} Kg7 {[%emt 0:00:11]} 36. Qf5 {[%emt 0:00:04]} Qd4 {[%emt 0:00:54]} 37. Re6 {[%emt 0:00:09]} Bxa3 {[%emt 0:00:24]} 38. Qg5+ {[%emt 0:00:05]} Kf8 {[%emt 0:00:06]} 39. Qh6+ {[%emt 0:00:09]} Kg8 {[%emt 0:00:05]} 40. bxa3 {[%emt 0:00:08]} Qf2+ {[%emt 0:00:04]} 41. Kb1 {[%emt 0:00:04]} Qe1+ {[%emt 0:00:04]} 42. Kb2 {[%emt 0:00:04]} Qf2+ {[%emt 0:00:07]} 43. Kb1 {[%emt 0:00:05]} Qe1+ {[%emt 0:00:16]} 44. Qc1 {[%emt 0:00:09]} Qe3 {[%emt 0:00:05]} 45. Qxe3 {[%emt 0:00:04]} Nh7 {[%emt 0:00:32]} 46. Qh6 {[%emt 0:00:04]} Nf8 {[%emt 0:00:07]} 47. Re8 {[%emt 0:00:05]} Rf4 {[%emt 0:00:06]} 48. a4 {[%emt 0:00:04]} Rf7 {[%emt 0:00:04]} 49. a5 {[%emt 0:00:04]} 1-0

[Event "AI Cup Div-2 2023"]
[Site "Online"]
[Date "2023.09.26"]
[Round "51.3"]
[White "Safarli, Eltaj"]
[Black "Niemann, Hans Moke"]
[Result "0-1"]
[ECO "B31"]
[WhiteElo "2612"]
[BlackElo "2667"]
[Annotator "ChessBase"]
[PlyCount "114"]
[EventDate "2023.09.18"]
[EventType "k.o."]
[EventCountry "NET"]
[SourceTitle "playchess.com"]
[Source "ChessBase"]
[SourceQuality "1"]
[TimeControl "900+3"]

1. e4 {[%emt 0:00:10]} c5 {[%emt 0:05:08]} 2. Nf3 {[%emt 0:00:06]} Nc6 {[%emt 0:00:03]} 3. Bb5 {[%emt 0:00:05]} g6 {[%emt 0:00:05]} 4. c3 {[%emt 0:00:31]} Bg7 {[%emt 0:00:16]} 5. d4 {[%emt 0:00:04]} Qa5 {[%emt 0:00:17]} 6. a4 {[%emt 0:01:16]} cxd4 {[%emt 0:00:07]} 7. O-O {[%emt 0:00:04]} a6 {[%emt 0:00:28]} 8. Bc4 {[%emt 0:00:23]} Nf6 {[%emt 0:00:37]} 9. Re1 {[%emt 0:00:39]} Nxe4 {[%emt 0:01:55]} 10. Bxf7+ {[%emt 0:00:23]} Kxf7 {[%emt 0:00:05]} 11. Rxe4 {[%emt 0:00:04]} d5 {[%emt 0:00:12]} 12. Rf4+ {[%emt 0:00:11]} Ke8 {[%emt 0:00:11]} 13. cxd4 {[%emt 0:00:09]} Bf5 {[%emt 0:00:22]} 14. Nc3 {[%emt 0:00:04]} Rf8 {[%emt 0:00:18]} 15. Bd2 {[%emt 0:01:21]} Qd8 {[%emt 0:00:11]} 16. a5 {[%emt 0:01:30]} Qd6 {[%emt 0:00:12]} 17. Qb3 {[%emt 0:00:21]} h6 {[%emt 0:00:41]} 18. h4 {[%emt 0:01:05]} g5 {[%emt 0:00:19]} 19. hxg5 {[%emt 0:00:04]} hxg5 {[%emt 0:00:03]} 20. Nxg5 {[%emt 0:00:03]} Bxd4 {[%emt 0:00:04]} 21. Re1 {[%emt 0:01:13]} Be5 {[%emt 0:00:15]} 22. Rh4 {[%emt 0:01:07]} Nxa5 {[%emt 0:00:06]} 23. Qxd5 {[%emt 0:00:33]} Nc6 {[%emt 0:00:06]} 24. Qxd6 {[%emt 0:00:37]} Bxd6 {[%emt 0:00:03]} 25. Nge4 {[%emt 0:00:09]} Be5 {[%emt 0:00:08]} 26. Nc5 {[%emt 0:00:08]} Rd8 {[%emt 0:00:20]} 27. Bh6 {[%emt 0:00:21]} Rh8 {[%emt 0:00:07]} 28. Rh5 {[%emt 0:00:09]} Bc8 {[%emt 0:00:35]} 29. N3e4 {[%emt 0:01:18]} Kf7 {[%emt 0:00:06]} 30. Rxe5 {[%emt 0:01:24]} Nxe5 {[%emt 0:00:07]} 31. Bf4 {[%emt 0:00:06]} Nc6 {[%emt 0:00:16]} 32. Ng5+ {[%emt 0:00:04]} Kg6 {[%emt 0:00:05]} 33. Nf3 {[%emt 0:00:08]} Rd5 {[%emt 0:00:07]} 34. Ne4 {[%emt 0:00:08]} Rdh5 {[%emt 0:00:04]} 35. Ng3 {[%emt 0:00:05]} Rb5 {[%emt 0:00:04]} 36. Ne5+ {[%emt 0:00:05]} Nxe5 {[%emt 0:00:05]} 37. Bxe5 {[%emt 0:00:03]} Rd8 {[%emt 0:00:14]} 38. Bc3 {[%emt 0:00:04]} Kf7 {[%emt 0:00:05]} 39. f3 {[%emt 0:00:04]} Rg8 {[%emt 0:00:22]} 40. Kf2 {[%emt 0:00:04]} Rbg5 {[%emt 0:00:04]} 41. Be5 {[%emt 0:00:04]} Be6 {[%emt 0:00:05]} 42. Bf4 {[%emt 0:00:04]} Rb5 {[%emt 0:00:05]} 43. Be5 {[%emt 0:00:05]} a5 {[%emt 0:00:05]} 44. Re4 {[%emt 0:00:05]} a4 {[%emt 0:00:05]} 45. Rf4+ {[%emt 0:00:10]} Ke8 {[%emt 0:00:04]} 46. Bc3 {[%emt 0:00:03]} Rbg5 {[%emt 0:00:04]} 47. Ne4 {[%emt 0:00:04]} Rxg2+ {[%emt 0:00:05]} 48. Ke3 {[%emt 0:00:03]} b5 {[%emt 0:00:07]} 49. Nc5 {[%emt 0:00:04]} Bd5 {[%emt 0:00:04]} 50. Rf5 {[%emt 0:00:07]} e6 {[%emt 0:00:04]} 51. Rh5 {[%emt 0:00:04]} Rf8 {[%emt 0:00:07]} 52. Rh7 {[%emt 0:00:08]} Rxf3+ {[%emt 0:00:08]} 53. Kd4 {[%emt 0:00:03]} Rf7 {[%emt 0:00:05]} 54. Rh8+ {[%emt 0:00:05]} Ke7 {[%emt 0:00:04]} 55. Bb4 {[%emt 0:00:05]} Rg4+ {[%emt 0:00:05]} 56. Ne4+ {[%emt 0:00:04]} Kd7 {[%emt 0:00:05]} 57. Kc5 {[%emt 0:00:06]} Rxe4 {[%emt 0:00:04]} 0-1

[Event "AI Cup Div-2 2023"]
[Site "Online"]
[Date "2023.09.27"]
[Round "52.1"]
[White "Caruana, Fabiano"]
[Black "Saric, Ivan"]
[Result "1-0"]
[ECO "D45"]
[WhiteElo "2786"]
[BlackElo "2647"]
[Annotator "TA"]
[PlyCount "135"]
[EventDate "2023.09.18"]
[EventType "k.o."]
[EventCountry "NET"]
[SourceTitle "playchess.com"]
[Source "ChessBase"]
[SourceQuality "1"]
[TimeControl "900+3"]

{[%evp 12,135,15,12,22,0,0,0,0,0,0,0,12,6,8,13,11,0,2,0,0,0,0,0,0,-11,0,-11,0,0,0,0,0,0,0,0,0,0,0,0,0,0,0,0,0,0,97,103,110,110,114,2,2,2,7,5,11,0,0,0,0,0,0,0,0,0,0,0,0,0,0,0,24,0,0,0,1019,930,831,0,0,0,0,0,0,0,0,0,0,0,0,0,0,0,0,0,0,0,0,0,0,0,0,0,0,0,0,0,0,0,0,0,0,0,0,0,0,0,0,0,0,0,0,0,1000,0]} 1. c4 {[%emt 0:00:06]} c6 {[%emt 0:00:08]} 2. Nf3 {[%emt 0:00:02]} d5 {[%emt 0:00:01]} 3. e3 {[%emt 0:00:01]} Nf6 {[%emt 0:00:01]} 4. Nc3 {[%emt 0:00:01]} e6 {[%emt 0:00:01]} 5. d4 {[%emt 0:00:01]} a6 {[%emt 0:00:07]} 6. c5 {[%emt 0:00:43]} Nbd7 {[%emt 0:00:03]} 7. b4 {[%emt 0:00:16] 7.Qc2 is vanishing.} b6 {[%emt 0:00:51] D45: Semi-Slav: 5 e3.} 8. Rb1 $5 {[%emt 0:00:45][%mdl 4] Leaves trodden paths.} a5 {[%emt 0:01:35]} 9. a3 {[%emt 0:00:04][%cal Ba2a3,Ba3b4,Bb4c5][%mdl 32] [#]} axb4 $146 {[%emt 0:00:15] The position is equal.} ({Predecessor:} 9... Be7 10. Bd3 axb4 11. axb4 bxc5 12. bxc5 Ba6 13. O-O O-O 14. Qe2 Bxd3 15. Qxd3 Qc7 {½-½ Deac,B (2544)-Lupulescu,C (2525) Bucharest Superbet-B blitz  2019 (2)}) 10. axb4 {[%emt 0:00:01]} Be7 {[%emt 0:02:20]} 11. Be2 {[%emt 0:00:03]} bxc5 {[%emt 0:00:06]} 12. bxc5 {[%emt 0:00:02]} Ba6 {[%emt 0:00:02]} 13. O-O {[%emt 0:00:14]} O-O {[%emt 0:00:03]} 14. h3 {[%emt 0:00:29]} Qc7 {[%emt 0:00:05]} 15. Bxa6 {[%emt 0:00:36]} Rxa6 {[%emt 0:00:00]} 16. Qc2 {[%emt 0:00:02]} e5 {[%emt 0:00:20]} 17. Bd2 {[%emt 0:00:19]} Rfa8 {[%emt 0:00:35]} 18. Rb2 {[%emt 0:00:04]} e4 {[%emt 0:00:11]} 19. Nh2 {[%emt 0:00:02]} Ra1 {[%emt 0:00:13]} 20. Rfb1 {[%emt 0:00:29]} h5 {[%emt 0:00:13]} 21. Nf1 {[%emt 0:00:21]} Rxb1 {[%emt 0:00:07]} 22. Qxb1 {[%emt 0:00:02]} Bd8 {[%emt 0:00:07]} 23. Na2 {[%emt 0:00:14]} Qc8 {[%emt 0:00:07]} 24. Nb4 {[%emt 0:00:19]} Ba5 {[%emt 0:00:28]} 25. Ra2 {[%emt 0:00:27] Qa1 is the strong threat.} Bxb4 {[%emt 0:00:04]} 26. Bxb4 {[%emt 0:00:00]} Rxa2 {[%emt 0:00:18]} 27. Qxa2 {[%emt 0:00:00]} Qb7 {[%emt 0:00:02]} 28. Qa5 {[%emt 0:00:20]} h4 {[%emt 0:00:09] [#]} (28... Nf8 $11 {remains equal.}) 29. Qd8+ $1 $16 {[%emt 0:00:22]} Nf8 {[%emt 0:00:12] Black is weak on the dark squares} 30. Ba5 {[%emt 0:00:04]} Qd7 {[%emt 0:00:26] [#]} 31. Qb8 {[%emt 0:00:10]} (31. Nd2 $1 $16) 31... Qe8 $36 {[%emt 0:00:39][%mdl 2048] Black is pushing.} 32. Qb7 {[%emt 0:00:11]} Ne6 {[%emt 0:00:18]} 33. Bb6 {[%emt 0:00:23]} g5 {[%emt 0:00:23]} 34. Nh2 {[%emt 0:00:26]} Kg7 {[%emt 0:00:11]} 35. Ba7 {[%emt 0:00:30]} Qd7 {[%emt 0:00:21]} 36. Qa6 {[%emt 0:00:43]} g4 {[%emt 0:00:56]} 37. hxg4 {[%emt 0:00:33]} Ng5 $1 {[%emt 0:00:04]} 38. Bb8 {[%emt 0:00:40]} Nxg4 {[%emt 0:00:10]} 39. Bf4 {[%emt 0:00:15]} Nxh2 {[%emt 0:01:39]} 40. Kxh2 {[%emt 0:00:00][%mdl 4096] Endgame KQB-KQN} Ne6 {[%emt 0:00:34]} 41. Bd6 {[%emt 0:00:02]} h3 {[%emt 0:00:05]} 42. Qe2 {[%emt 0:00:34]} Ng5 $1 {[%emt 0:00:40]} 43. Bf4 {[%emt 0:00:08]} Qf5 {[%emt 0:00:20][%mdl 8192]} (43... hxg2 $11 44. Bxg5 Kg6) 44. Bxg5 $18 {[%emt 0:00:10]} Qxg5 {[%emt 0:00:01]} 45. Kxh3 $2 {[%emt 0:00:43] KQ-KQ} ({Only move:} 45. gxh3 $18 {Strongly threatening Qg4.} Kh7 46. Qg4 Qxg4 47. hxg4) 45... Qh6+ $1 $11 {[%emt 0:00:10]} 46. Kg3 {[%emt 0:00:02] Threatens to win with Qg4+.} f5 {[%emt 0:00:02] Inhibits Qg4+.} 47. Qa6 {[%emt 0:00:16] Qb7+ would be deadly.} Qg5+ {[%emt 0:00:19]} 48. Kh2 {[%emt 0:00:02]} Qh5+ {[%emt 0:00:00]} 49. Kg1 {[%emt 0:00:01]} Qd1+ {[%emt 0:00:01]} 50. Qf1 {[%emt 0:00:01]} Qd2 {[%emt 0:00:27]} 51. g3 {[%emt 0:00:26]} Kg6 {[%emt 0:00:02]} 52. Kg2 {[%emt 0:00:01] And now Qa6 would win.} Kg5 $1 {[%emt 0:00:09]} 53. Qh1 {[%emt 0:00:07] aiming for Qh4+.} Qe2 {[%emt 0:00:06]} 54. Qh4+ {[%emt 0:00:24]} Kg6 {[%emt 0:00:01]} 55. Qf4 {[%emt 0:00:00]} Qg4 {[%emt 0:00:16]} 56. Qd6+ {[%emt 0:01:18]} Kg5 {[%emt 0:00:01]} 57. Qd8+ {[%emt 0:00:15]} (57. Qxc6 $5 Qf3+ $8 58. Kg1 Qd1+ 59. Kh2 Qh5+ 60. Kg2 Qf3+ 61. Kg1 Qd1+ 62. Kh2 Qh5+ 63. Kg2 Qf3+ $11) 57... Kg6 {[%emt 0:00:02]} 58. Qg8+ {[%emt 0:00:04]} Kf6 {[%emt 0:00:05]} 59. Qh7 {[%emt 0:00:11] Active counter play!} ({Don't take} 59. Qd8+ $6 Kg6 $16) 59... Qf3+ {[%emt 0:00:07]} 60. Kg1 {[%emt 0:00:01]} Qd1+ {[%emt 0:00:02]} 61. Kh2 {[%emt 0:00:01]} Qf3 {[%emt 0:00:26]} 62. Qh6+ {[%emt 0:00:01]} Kf7 {[%emt 0:00:02]} 63. Qf4 {[%emt 0:00:00] Hoping for Qxf3.} Qh5+ {[%emt 0:00:12]} 64. Kg2 {[%emt 0:00:03]} Qg4 {[%emt 0:00:05]} 65. f3 {[%emt 0:00:09]} ({Don't do} 65. Qc7+ $6 Kf8 $16) 65... exf3+ {[%emt 0:00:03]} 66. Qxf3 {[%emt 0:00:00]} Qg5 {[%emt 0:00:08]} 67. g4 {[%emt 0:00:08]} Ke7 $2 {[%emt 0:00:04][%mdl 8192]} (67... Qxg4+ $11 68. Qxg4 fxg4) 68. Qf4 $2 {[%emt 0:00:17][%mdl 32768] Weighted Error Value: White=0.15 (very precise) /Black=0.05 (flawless) . Loss on time!?} (68. Qxf5 $18 Qxe3 69. Qf2) 1-0

[Event "AI Cup Div-2 2023"]
[Site "Online"]
[Date "2023.09.27"]
[Round "52.1"]
[White "Dominguez Perez, Leinier"]
[Black "Eljanov, Pavel"]
[Result "1/2-1/2"]
[ECO "C56"]
[WhiteElo "2745"]
[BlackElo "2695"]
[Annotator "TA"]
[PlyCount "39"]
[EventDate "2023.09.18"]
[EventType "k.o."]
[EventCountry "NET"]
[SourceTitle "playchess.com"]
[Source "ChessBase"]
[SourceQuality "1"]
[TimeControl "900+3"]

{[%evp 9,39,22,15,19,27,16,22,10,7,4,10,0,8,0,0,0,8,5,1,5,5,0,0,0,0,0,0,0,0,0,0,0]} 1. e4 {[%emt 0:00:08]} e5 {[%emt 0:00:09]} 2. Nf3 {[%emt 0:00:02]} Nc6 {[%emt 0:00:03]} 3. Bc4 {[%emt 0:00:02]} d6 {[%emt 0:00:04]} 4. d4 {[%emt 0:00:10]} Nf6 {[%emt 0:00:06]} 5. dxe5 {[%emt 0:00:26]} dxe5 {[%emt 0:00:06]} 6. Qxd8+ {[%emt 0:00:08] C56: Two Knights: 4 d4 exd4 5 0-0 Nxe4.} Nxd8 {[%emt 0:00:01]} 7. Nxe5 {[%emt 0:00:05]} Bd6 {[%emt 0:00:02] The position is equal.} 8. Nf3 {[%emt 0:00:26] [#] e5 would be deadly.} Nxe4 {[%emt 0:00:01]} 9. O-O {[%emt 0:00:00][%cal Bh1f1,Bf1e1,Be1e4][%mdl 32] Strongly threatening Re1.} Be6 {[%emt 0:00:12] [#]} 10. Re1 $146 {[%emt 0:00:02]} ({Predecessor:} 10. Bxe6 Nxe6 11. Re1 N4c5 12. Nc3 O-O-O 13. Be3 a6 14. a4 Rhe8 15. a5 Bf4 16. b4 Bxe3 17. Rxe3 {0-1 Abrahamyan,T (2262)-Batsiashvili,N (2478) WchT (Women) Final rapid 2023 (2.1)}) 10... Bxc4 {[%emt 0:00:03]} 11. Rxe4+ {[%emt 0:00:02]} Be6 {[%emt 0:00:00]} 12. Nc3 {[%emt 0:00:01]} a6 {[%emt 0:00:31]} 13. Bf4 {[%emt 0:02:43]} Bxf4 {[%emt 0:00:38]} 14. Rxf4 {[%emt 0:00:03]} O-O {[%emt 0:00:55]} 15. Re1 {[%emt 0:02:09]} h6 {[%emt 0:01:00]} 16. Ne5 {[%emt 0:03:12]} Re8 {[%emt 0:00:41]} 17. h4 {[%emt 0:00:02]} f6 {[%emt 0:03:16]} 18. Nd3 {[%emt 0:00:02] A dynamic duo of knights.} Bf7 {[%emt 0:00:12] Repels Nd5} 19. Rxe8+ {[%emt 0:01:30]} Bxe8 {[%emt 0:00:02]} 20. Re4 {[%emt 0:01:23] Repels Ne6. Not much happened in this game.   Weighted Error Value: White=0.02 (flawless) /Black=0.01 (flawless)} 1/2-1/2